[Event "7th Sharjah Masters 2024"]
[Site "Sharjah"]
[Date "2024.05.22"]
[Round "9.31"]
[White "Gupta, Abhijeet"]
[Black "Gavrilescu, David"]
[Result "1-0"]
[ECO "D35"]
[WhiteElo "2604"]
[BlackElo "2540"]
[Annotator "TA"]
[PlyCount "115"]
[EventDate "2024.05.13"]
[EventType "swiss"]
[EventCountry "UAE"]
[SourceTitle "playchess.com"]
[Source "ChessBase"]
[SourceQuality "1"]
[TimeControl "5400+30"]

{[%evp 38,115,89,91,96,101,96,85,77,78,68,90,83,70,64,83,108,89,100,100,105,92,143,137,117,91,140,60,63,66,142,136,272,270,260,275,403,396,391,389,365,350,347,343,347,282,347,0,352,352,299,298,529,529,500,472,973,959,1045,740,1322,1283,1335,1302,29975,29976,29976,29976,29976,29977,29979,29980,29984,29985,29986,29985,29985,29986,29986,29987]} 1. d4 {[%emt 1:31:00]} Nf6 {[%emt 1:31:00]} 2. c4 {[%emt 0:00:30]} e6 {[%emt 0:00:30]} 3. Nc3 {[%emt 0:00:30]} d5 {[%emt 0:00:30]} 4. cxd5 {[%emt 0:00:30]} exd5 {[%emt 0:00:30]} 5. Bg5 {[%emt 0:00:30]} Bb4 {[%emt 0:00:30]} 6. e3 {[%emt 0:00:30]} h6 {[%emt 0:00:30]} 7. Bh4 {[%emt 0:00:30]} g5 {[%emt 0:00:30] D35: Queen's Gambit Declined: Exchange Variation.} 8. Bg3 {[%emt 0:00:30]} h5 {[%emt 0:00:30]} 9. Qb3 $5 {[%emt 0:00:30][%mdl 4] An interesting side line.} Bxc3+ {[%emt 0:00:30]} 10. Qxc3 {[%emt 0:00:30]} Nc6 {[%emt 0:00:30]} 11. Bd3 {[%emt 0:00:30]} h4 {[%emt 0:00:30]} 12. Be5 {[%emt 0:00:30]} Nxe5 {[%emt 0:00:30]} 13. dxe5 {[%emt 0:00:30]} Ne4 {[%emt 0:00:30]} 14. Qa3 {[%emt 0:00:30]} h3 {[%emt 0:00:30]} 15. gxh3 {[%emt 0:00:30]} Bxh3 {[%emt 0:00:30]} 16. Nxh3 {[%emt 0:00:30]} Rxh3 {[%emt 0:00:30]} 17. Qb3 $146 {[%emt 0:00:30]} ({Predecessor:} 17. Bxe4 dxe4 18. Rd1 Qe7 19. Qa4+ c6 20. Qxe4 Rh4 21. f4 gxf4 22. exf4 Rg4 23. Rf1 {½-½ Donchenko,A (2636)-Kulaots,K (2513) Elllobregat op 3rd 2022 (8)}) 17... Nc5 {[%emt 0:00:30]} 18. Qb5+ {[%emt 0:00:30]} Nd7 {[%emt 0:00:30]} 19. Bf5 {[%emt 0:00:30]} Rh6 {[%emt 0:00:30]} (19... Rf3 $2 20. Bg4 (20. Qxd5 $2 Rxf5 21. Qxb7 Qb8 $19) 20... c6 21. Qe2 $18 (21. Qxb7 $11)) 20. Qxd5 {[%emt 0:00:30]} c6 {[%emt 0:00:30]} 21. Qd4 $1 {[%emt 0:00:30]} Rh4 {[%emt 0:00:30]} 22. f4 {[%emt 0:00:30]} Nb6 {[%emt 0:00:30]} 23. O-O-O {[%emt 0:00:30]} Qxd4 {[%emt 0:00:30]} 24. Rxd4 {[%emt 0:00:30]} gxf4 {[%emt 0:00:30]} 25. Rxf4 {[%emt 0:00:30]} Rh6 {[%emt 0:00:30]} 26. h3 {[%emt 0:00:30]} Ke7 {[%emt 0:00:30]} 27. Rhf1 {[%emt 0:00:30]} Rf8 {[%emt 0:00:30]} 28. Bg4 {[%emt 0:00:30]} Nd5 {[%emt 0:00:30]} 29. R4f3 {[%emt 0:00:30]} Rhh8 {[%emt 0:00:30]} (29... Rg6 $142) 30. e4 $16 {[%emt 0:00:30]} Nc7 {[%emt 0:00:30]} 31. Ra3 {[%emt 0:00:30]} Na6 {[%emt 0:00:30]} (31... a6 $142) 32. Be2 {[%emt 0:00:30]} ({Better is} 32. Rf6 $16) 32... Nc5 $14 {[%emt 0:00:30]} 33. Rxa7 {[%emt 0:00:30]} Rxh3 {[%emt 0:00:30]} (33... Ra8 $14 34. Rxa8 Rxa8) 34. b4 $1 $16 {[%emt 0:00:30]} Rc3+ {[%emt 0:00:30]} (34... Nd3+ $16 35. Kb1 (35. Bxd3 Rxd3 36. Rxb7+ Ke6 $16) 35... Rb8) 35. Kb2 $1 $18 {[%emt 0:00:30]} Re3 {[%emt 0:00:30]} 36. Bc4 $1 {[%emt 0:00:30]} Rxe4 {[%emt 0:00:30] [#]} (36... Nd3+ $142 37. Bxd3 Rxd3 38. Rxb7+ Ke6 39. Rf6+ Kxe5 40. Rxc6 (40. Rbxf7 Rb8 $16) 40... Rd2+ 41. Kb3 Rd3+ 42. Kc4 Rd4+ 43. Kc3 Rxe4 44. Rc5+ Kf6 45. Rc6+ Re6) 37. Kc3 $1 $18 {[%emt 0:00:30]} (37. bxc5 Rxc4 38. Rf6 (38. Rxb7+ Ke6 $16) 38... Rb8 $11) (37. Rc1 Nd7 $14) 37... Nd7 {[%emt 0:00:30]} 38. Rxb7 {[%emt 0:00:30]} Rxe5 {[%emt 0:00:30]} 39. Rd1 {[%emt 0:00:30]} Rd8 {[%emt 0:00:30]} 40. a4 {[%emt 0:00:30]} Re3+ {[%emt 0:00:30]} 41. Kb2 {[%emt 0:00:30]} Re4 {[%emt 0:00:30]} 42. Kc3 {[%emt 0:00:30]} Re3+ $1 {[%emt 0:00:30] [#]} 43. Kc2 $1 {[%emt 0:00:30]} Re4 {[%emt 0:00:30]} 44. Bf1 {[%emt 0:00:30]} Ke6 $2 {[%emt 0:00:30]} (44... Re6 45. a5 Rd6 46. Re1+ Kf6) 45. a5 $18 {[%emt 0:00:30]} Rf4 {[%emt 0:00:30]} 46. a6 {[%emt 0:00:30]} Rf2+ {[%emt 0:00:30]} (46... Ra8 $142 47. Rdxd7 (47. Rbxd7 Rxf1 48. R1d6+ Ke5 $18) 47... Rxf1) 47. Kb1 $18 {[%emt 0:00:30]} Rf4 {[%emt 0:00:30]} 48. a7 {[%emt 0:00:30]} Ra8 {[%emt 0:00:30]} 49. Bh3+ {[%emt 0:00:30]} ({Weaker is} 49. Rbxd7 Rxb4+ 50. Kc2 Ra4 $16) 49... f5 {[%emt 0:00:30]} 50. Rdxd7 {[%emt 0:00:30]} ({Not} 50. Rbxd7 Rxb4+ 51. Kc1 (51. Kc2 Ra4 $14) 51... Ra4 $14) 50... Rxb4+ {[%emt 0:00:30]} 51. Rxb4 {[%emt 0:00:30]} Kxd7 {[%emt 0:00:30]} 52. Rb7+ {[%emt 0:00:30]} Ke6 {[%emt 0:00:30]} 53. Kc2 {[%emt 0:00:30]} Ke5 {[%emt 0:00:30]} 54. Kc3 {[%emt 0:00:30]} Rh8 {[%emt 0:00:30]} 55. Bg2 {[%emt 0:00:30]} Rg8 {[%emt 0:00:30]} 56. Rb8 {[%emt 0:00:30]} Rg3+ {[%emt 0:00:30]} 57. Kc4 {[%emt 0:00:30]} Rg4+ {[%emt 0:00:30]} 58. Kc5 {[%emt 0:00:30]} 1-0

[Event "7th Sharjah Masters 2024"]
[Site "Sharjah"]
[Date "2024.05.22"]
[Round "9.32"]
[White "Pranav Anand"]
[Black "Jumabayev, Rinat"]
[Result "1-0"]
[ECO "B43"]
[WhiteElo "2532"]
[BlackElo "2597"]
[Annotator "TA"]
[PlyCount "99"]
[EventDate "2024.05.13"]
[EventType "swiss"]
[EventCountry "UAE"]
[SourceTitle "playchess.com"]
[Source "ChessBase"]
[SourceQuality "1"]
[TimeControl "5400+30"]

{[%evp 23,99,16,26,13,47,41,57,37,78,48,60,52,42,39,52,58,45,37,42,41,69,63,68,48,81,75,91,73,81,81,85,86,86,23,51,23,106,84,88,92,113,56,100,114,108,101,103,98,91,107,147,164,116,107,223,204,240,220,232,228,242,232,338,325,340,321,1993,29958,7721,1977,4134,2194,29966,12798,29992,29993,29996,29997]} 1. e4 {[%emt 0:00:04]} c5 {[%emt 0:00:13]} 2. Nf3 {[%emt 0:00:08]} e6 {[%emt 0:00:02]} 3. d4 {[%emt 0:00:05]} cxd4 {[%emt 0:00:03]} 4. Nxd4 {[%emt 0:00:05]} a6 {[%emt 0:00:03]} 5. Nc3 {[%emt 0:00:21]} b5 {[%emt 0:00:10]} 6. Bd3 {[%emt 0:00:07]} Bb7 {[%emt 0:00:09]} 7. O-O {[%emt 0:00:22]} Nc6 {[%emt 0:00:08]} 8. Nxc6 {[%emt 0:00:31]} Bxc6 {[%emt 0:00:15]} 9. Re1 {[%emt 0:00:04] B43: Sicilian: Kan Variation: 5 Nc3.} Ne7 {[%emt 0:06:07] now scores much better than the old 9...Bc5.} 10. Bf1 {[%emt 0:02:00]} Ng6 {[%emt 0:01:02]} 11. Be3 {[%emt 0:00:10]} Rb8 $146 {[%emt 0:16:02]} ({Predecessor:} 11... f6 12. a4 Bb4 13. axb5 Bxc3 14. bxc6 Bxe1 15. cxd7+ Qxd7 16. Bb5 Qxb5 {0-1 Maksimovic,B (2486)-Predke,A (2684) Belgrade Gligoric 100 Ann op blitz 2023 (11)}) 12. Qd4 {[%emt 0:15:04]} f6 {[%emt 0:24:37]} 13. Rad1 {[%emt 0:12:41]} Be7 {[%emt 0:09:33]} 14. Nd5 $1 {[%emt 0:01:40]} O-O {[%emt 0:00:08]} (14... exd5 $6 15. exd5 O-O 16. dxc6 dxc6 17. f4 $16) 15. c4 {[%emt 0:07:19]} Rf7 {[%emt 0:10:22]} ({Reject} 15... exd5 16. exd5 Ba8 17. d6 $16) 16. cxb5 {[%emt 0:09:07]} axb5 {[%emt 0:01:35]} 17. Nxe7+ {[%emt 0:06:03]} Nxe7 {[%emt 0:01:46]} 18. f3 {[%emt 0:00:53]} f5 {[%emt 0:03:29]} 19. Bg5 {[%emt 0:09:34]} fxe4 {[%emt 0:01:15]} 20. fxe4 {[%emt 0:00:02]} Qc7 {[%emt 0:06:14]} 21. Bd2 {[%emt 0:03:23]} Ra8 {[%emt 0:02:52]} 22. a3 {[%emt 0:01:23]} Ng6 {[%emt 0:00:08]} 23. Bb4 {[%emt 0:00:57]} Qb7 {[%emt 0:02:12]} 24. g3 {[%emt 0:03:21]} Qa7 {[%emt 0:07:44]} 25. Bc5 {[%emt 0:01:07]} Qb8 {[%emt 0:00:49]} 26. Bd6 {[%emt 0:03:26]} Qd8 {[%emt 0:00:15]} 27. Bg2 {[%emt 0:01:43]} Qg5 {[%emt 0:02:10]} 28. Rf1 {[%emt 0:00:57]} (28. Rc1 $16) 28... Ra4 {[%emt 0:02:52]} 29. Qd3 {[%emt 0:03:27]} Rf6 {[%emt 0:01:04]} (29... Ne5 $11 {remains equal.} 30. Qc3 Ng4) 30. b3 {[%emt 0:00:47]} Ra8 {[%emt 0:00:32]} 31. h4 {[%emt 0:00:19]} Qg4 {[%emt 0:00:43]} 32. Kh2 {[%emt 0:02:04]} ({Better is} 32. Rxf6 $16 gxf6 33. Bf3) 32... Nh8 {[%emt 0:01:02]} 33. Rxf6 {[%emt 0:03:38]} gxf6 {[%emt 0:00:02]} 34. Rf1 $1 {[%emt 0:00:06]} Qg7 {[%emt 0:00:07]} 35. Qc3 {[%emt 0:00:28]} Nf7 {[%emt 0:00:57]} 36. Be7 $1 {[%emt 0:00:46]} Ne5 {[%emt 0:01:02]} 37. Bxf6 {[%emt 0:00:29]} Ng4+ {[%emt 0:00:03]} 38. Kh3 {[%emt 0:00:20]} Nxf6 {[%emt 0:00:48]} (38... Qg6 $16) 39. Rxf6 $18 {[%emt 0:00:02]} Rxa3 {[%emt 0:00:25]} 40. e5 {[%emt 0:00:59]} Bxg2+ {[%emt 0:00:30]} 41. Kxg2 {[%emt 0:00:02]} Ra8 {[%emt 0:00:20]} 42. Qf3 $1 {[%emt 0:00:24]} Rc8 {[%emt 0:00:19] [#]} (42... Re8 $142 43. Qf4 Re7) 43. Kh3 $1 $18 {[%emt 0:00:30]} b4 {[%emt 0:00:25] [#]} 44. Qf4 $1 {[%emt 0:07:32]} Rb8 $2 {[%emt 0:00:47]} (44... Rd8 45. h5 (45. Qxb4 Ra8 $18) 45... Qe7) 45. h5 $18 {[%emt 0:00:29]} Qe7 {[%emt 0:00:16]} 46. h6 {[%emt 0:00:43]} Rc8 {[%emt 0:00:49]} 47. Qf3 {[%emt 0:01:18]} Rb8 {[%emt 0:00:55]} 48. Rf4 {[%emt 0:00:13]} Kh8 {[%emt 0:00:38]} 49. Rf7 {[%emt 0:00:10]} Qg5 {[%emt 0:00:07]} 50. Rf8+ {[%emt 0:00:05]} (50. Rxd7 Qxh6+ 51. Kg2 Rf8 $14) 1-0

[Event "7th Sharjah Masters 2024"]
[Site "Sharjah"]
[Date "2024.05.22"]
[Round "9.34"]
[White "Sethuraman, S.P."]
[Black "Cardoso Cardoso, Jose Gabriel"]
[Result "1-0"]
[ECO "B89"]
[WhiteElo "2593"]
[BlackElo "2497"]
[Annotator "TA"]
[PlyCount "91"]
[EventDate "2024.05.13"]
[EventType "swiss"]
[EventCountry "UAE"]
[SourceTitle "playchess.com"]
[Source "ChessBase"]
[SourceQuality "1"]
[TimeControl "5400+30"]

{[%evp 16,91,32,0,10,-14,0,12,0,27,21,20,5,0,63,39,42,60,65,68,75,82,66,75,91,65,67,58,58,68,63,58,50,55,60,54,59,54,135,54,52,52,61,60,35,19,118,119,113,122,110,83,128,120,99,0,122,112,108,96,212,210,203,218,227,226,223,203,300,286,389,391,762,688,756,753,865,860]} 1. e4 {[%emt 0:00:14]} c5 {[%emt 0:00:11]} 2. Nf3 {[%emt 0:00:08]} d6 {[%emt 0:00:06]} 3. d4 {[%emt 0:00:06]} cxd4 {[%emt 0:00:05]} 4. Nxd4 {[%emt 0:00:06]} Nf6 {[%emt 0:00:08]} 5. Nc3 {[%emt 0:00:06]} Nc6 {[%emt 0:00:11]} 6. Bc4 {[%emt 0:00:08]} e6 {[%emt 0:00:18]} 7. Be3 {[%emt 0:01:08]} a6 {[%emt 0:02:41]} 8. Qe2 {[%emt 0:02:15]} Bd7 {[%emt 0:00:12]} 9. O-O-O {[%emt 0:05:23]} b5 {[%emt 0:00:29][%cal Bb7b5,Bb5b4][%mdl 32]} 10. Bb3 {[%emt 0:12:42]} Na5 {[%emt 0:00:12]} 11. f3 {[%emt 0:10:25]} Qc7 {[%emt 0:00:11] The position is equal.} 12. g4 {[%emt 0:01:41]} b4 {[%emt 0:00:18]} 13. Na4 {[%emt 0:01:41]} Be7 {[%emt 0:00:40]} 14. Kb1 {[%emt 0:06:45][%cal Oa4b6]} Nxb3 {[%emt 0:02:00]} (14... O-O $11) 15. cxb3 $14 {[%emt 0:01:36]} O-O {[%emt 0:01:48]} 16. h4 {[%emt 0:00:02]} d5 {[%emt 0:10:00]} 17. Rc1 {[%emt 0:05:53]} Qb8 {[%emt 0:09:57] [#]} 18. e5 {[%emt 0:01:19]} Qxe5 {[%emt 0:06:43]} 19. Nb6 {[%emt 0:00:15][%cal Og4g5] g5! would now be deadly.} Qd6 {[%emt 0:03:21]} 20. Nxa8 {[%emt 0:02:51]} Rxa8 {[%emt 0:00:06]} 21. Qc2 {[%emt 0:05:03]} a5 {[%emt 0:07:31]} 22. Nc6 {[%emt 0:04:03][%cal Oe3f4]} Bf8 {[%emt 0:03:24] [#] And now ...Rc8 would win.} 23. Qh2 $1 {[%emt 0:00:44] White has more active pieces.} Qxh2 {[%emt 0:08:12]} 24. Rxh2 {[%emt 0:00:15][%cal Bh1h2,Bh2c2,Bc2c7][%mdl 32]} Bd6 {[%emt 0:00:04]} 25. Rhc2 {[%emt 0:10:39]} h5 {[%emt 0:02:12]} 26. g5 {[%emt 0:00:36]} Nh7 {[%emt 0:00:06]} (26... Ne8 $14) 27. f4 {[%emt 0:02:01]} (27. Bc5 $16 Bf4 28. Ne7+ Kh8 29. g6 Bxc1 30. gxf7 (30. Kxc1 fxg6 31. Nxg6+ Kg8 $11)) 27... Nf8 {[%emt 0:01:20]} 28. Ne5 {[%emt 0:00:06] Wards off Ng6} Bxe5 {[%emt 0:01:40]} 29. fxe5 {[%emt 0:00:07] aiming for Rc7.} Ng6 {[%emt 0:00:11][%csl LRe5,LRh4]} 30. Rc7 $36 {[%emt 0:04:39][%mdl 2048] White is pushing.} Nxe5 {[%emt 0:00:40]} (30... Bb5 $1 $11) 31. Bd4 $16 {[%emt 0:02:02]} Nf3 {[%emt 0:01:31][%csl LRd4,LRh4][%cal Be5f3,Bf3d4,Bd4f5][%mdl 32]} 32. Rxd7 {[%emt 0:00:34]} Nxd4 {[%emt 0:00:07][%mdl 4096] Endgame. KRR-KRN} 33. Rcc7 {[%emt 0:00:02][%cal Og5g6] Threatens to win with g6!} Nf5 {[%emt 0:04:40]} 34. Rxf7 {[%emt 0:00:04] Black must now prevent g6.} Kh7 {[%emt 0:00:05][%cal Oh7g6]} 35. Kc2 {[%emt 0:07:21]} ({White should try} 35. Rf6 $16 Re8 36. a3) 35... Rg8 {[%emt 0:02:53]} (35... Kg6 $1 $11) 36. Rf6 {[%emt 0:00:59]} Re8 {[%emt 0:03:54]} 37. Kd3 {[%emt 0:01:05]} Nxh4 {[%emt 0:05:26]} (37... Kg8 $16 {might work better.} 38. Rff7 Kh7) 38. Rh6+ $18 {[%emt 0:00:07]} Kg8 {[%emt 0:00:03]} 39. Rxh5 {[%emt 0:00:04]} Ng6 {[%emt 0:02:00] Hoping for ...Nf4+.} 40. Rh2 {[%emt 0:03:05]} e5 {[%emt 0:02:55]} 41. Ke3 {[%emt 0:00:09]} Nf4 {[%emt 0:02:39]} (41... Rf8 $142 42. Rhc2 Rf4) 42. Ra7 {[%emt 0:01:05]} Ne6 {[%emt 0:00:46]} 43. g6 {[%emt 0:00:57]} (43. Rxa5 d4+ 44. Ke2 Kf7 $16) 43... Ng5 $2 {[%emt 0:04:58]} (43... Nf8 44. Rg2 (44. Rxa5 d4+ 45. Ke4 Nxg6 $18) 44... Ne6 45. Rxa5 Kf8 46. Rxd5 Nf4) 44. Rh5 {[%emt 0:01:44] White is clearly winning.} d4+ {[%emt 0:00:18]} 45. Ke2 {[%emt 0:05:17]} Ne6 {[%emt 0:05:37]} 46. Rxe5 {[%emt 0:01:00] Weighted Error Value: White=0.08 (flawless) /Black=0.27 (precise) .  Mistake:       	White=2     	Black=7      Inaccurate:     	---       	Black=2      OK:         	White=16    	Black=18     Best:        	White=7     	Black=2      Strong:       	White=1     	---        Brilliant:      	White=1     	---} (46. Rxa5 $2 {too greedy.} Nf4+ 47. Kd1 Nxh5 $19) 1-0

[Event "7th Sharjah Masters 2024"]
[Site "Sharjah"]
[Date "2024.05.22"]
[Round "9.35"]
[White "Royal, Shreyas"]
[Black "Peralta, Fernando"]
[Result "1/2-1/2"]
[ECO "A13"]
[WhiteElo "2464"]
[BlackElo "2575"]
[Annotator "TA"]
[PlyCount "62"]
[EventDate "2024.05.13"]
[EventType "swiss"]
[EventCountry "UAE"]
[SourceTitle "playchess.com"]
[Source "ChessBase"]
[SourceQuality "1"]
[TimeControl "5400+30"]

{[%evp 9,62,3,14,8,7,12,16,0,13,15,43,48,60,68,70,55,60,41,64,68,99,106,98,93,136,117,129,146,129,132,126,85,71,82,79,-33,-32,-390,-395,-370,-382,-379,-379,-368,-369,-416,-425,-419,-55,-83,0,-409,-399,-689,-684]} 1. c4 {[%emt 0:00:04]} e6 {[%emt 0:00:14]} 2. Nc3 {[%emt 0:00:07]} Bb4 {[%emt 0:00:09]} 3. e4 {[%emt 0:00:29]} d6 {[%emt 0:00:12]} 4. Nf3 {[%emt 0:01:20]} Nf6 {[%emt 0:04:32]} 5. d3 {[%emt 0:06:58]} O-O {[%emt 0:01:18]} 6. a3 {[%emt 0:01:19]} Bxc3+ {[%emt 0:00:44]} 7. bxc3 {[%emt 0:00:01]} e5 {[%emt 0:08:33]} 8. g3 {[%emt 0:00:32] The position is equal.} c6 {[%emt 0:14:59]} 9. Bg2 {[%emt 0:00:57]} d5 {[%emt 0:00:34]} 10. exd5 {[%emt 0:07:37]} cxd5 {[%emt 0:01:32]} 11. Nxe5 {[%emt 0:04:50]} dxc4 {[%emt 0:12:22]} 12. Nxc4 {[%emt 0:05:08]} Bg4 {[%emt 0:02:05]} 13. Qd2 {[%emt 0:02:49][%cal Oe1g1]} Nbd7 {[%emt 0:08:29]} 14. d4 {[%emt 0:05:57][%cal Oe1g1] Repels Nc5. Active counter play!} (14. Bxb7 $2 Nc5 15. Ne3 Nxb7 16. Nxg4 Nxg4 $19) 14... Re8+ {[%emt 0:15:10]} 15. Ne3 {[%emt 0:00:07]} Ne4 {[%emt 0:00:13]} 16. Qb2 {[%emt 0:02:02]} Ng5 {[%emt 0:13:24]} 17. O-O $1 {[%emt 0:00:06]} (17. Bxb7 Rb8 18. f4 (18. O-O $2 Rxb7 19. Qa2 Bf3 $19) 18... Nh3 $19 (18... Bf3 $2 19. Rf1 $19)) 17... Bf3 {[%emt 0:00:08]} 18. Bxf3 {[%emt 0:01:15]} Nxf3+ {[%emt 0:00:05]} 19. Kg2 {[%emt 0:00:06]} Ng5 {[%emt 0:00:56]} 20. c4 {[%emt 0:23:15][%cal Oh2h4]} Nb6 {[%emt 0:01:17]} 21. f3 {[%emt 0:01:52]} Qd7 {[%emt 0:03:33][%cal Ob6c4]} 22. Ra2 {[%emt 0:03:14]} (22. Qc3 $16) 22... Nxc4 $15 {[%emt 0:02:02]} 23. Nxc4 {[%emt 0:02:54][%mdl 8192]} (23. Qb3 $15 Nd6 24. d5) 23... Qh3+ $19 {[%emt 0:00:12]} 24. Kg1 {[%emt 0:00:04] [#]} Nxf3+ {[%emt 0:00:14][%mdl 512]} 25. Kf2 {[%emt 0:00:04]} (25. Rxf3 $2 Re1+ 26. Kf2 Qf1#) 25... Nxh2 {[%emt 0:02:12]} (25... Qxh2+ 26. Kxf3 Qh5+ 27. Kg2 Qd5+ 28. Kg1 Qxc4 29. Qf2 $18) 26. Rd1 {[%emt 0:01:37][%cal Oc4e5]} Ng4+ {[%emt 0:05:42]} 27. Kf3 {[%emt 0:00:11]} Qh5 {[%emt 0:00:29] Repels Ne5. ( -> ...Ne3+)} 28. Kg2 {[%emt 0:00:05]} Qh2+ $2 $40 {[%emt 0:01:05][%mdl 128] Black mounts an attack.} (28... b5 $19 29. Ne5 Nxe5) 29. Kf3 $15 {[%emt 0:00:02] [#]} Qh5 {[%emt 0:00:14][%mdl 8192]} (29... Qh3 $1 $17 {[%cal Rh3h5]} 30. Ne5 (30. Qg2 $2 Qh5 $19) 30... Nxe5+ 31. dxe5 Qh5+ 32. g4 Qh3+ (32... Qxe5 $2 {loses.} 33. Qxe5 Rxe5 34. Rd7 $16) 33. Kf2 Qh4+ (33... Qxg4 34. Qd4 $11) 34. Kf3 h5 (34... Qh3+ 35. Kf2 $11)) 30. Kg2 $1 $19 {[%emt 0:00:03]} Qd5+ {[%emt 0:01:36]} 31. Kh3 $2 {[%emt 0:30:55]} (31. Kg1) 31... Re4 {[%emt 0:01:45][%mdl 32768] Weighted Error Value: White=0.47/Black=0.30.  Loses game:     	White=1     	---        Missed win:     	---       	Black=1      Mistake:       	White=2     	Black=1      Inaccurate:     	White=1     	Black=3      OK:         	White=8     	Black=12     Best:        	White=6     	Black=2      Strong:       	White=2     	---        Brilliant:      	---       	Black=1     . An unexpected result.} 1/2-1/2

[Event "7th Sharjah Masters 2024"]
[Site "Sharjah"]
[Date "2024.05.22"]
[Round "9.36"]
[White "Suleymenov, Alisher"]
[Black "Yilmazyerli, Mert"]
[Result "1-0"]
[ECO "D28"]
[WhiteElo "2501"]
[BlackElo "2522"]
[Annotator "TA"]
[PlyCount "79"]
[EventDate "2024.05.13"]
[EventType "swiss"]
[EventCountry "UAE"]
[SourceTitle "playchess.com"]
[Source "ChessBase"]
[SourceQuality "1"]
[TimeControl "5400+30"]

{[%evp 15,79,6,30,35,35,38,45,26,45,51,50,52,207,202,209,219,212,227,228,222,349,200,202,217,170,209,196,185,200,191,198,200,191,192,187,183,186,53,228,213,210,232,221,200,205,207,243,220,226,211,325,305,341,331,431,416,484,508,503,497,538,535,5065,4718,995,862]} 1. d4 {[%emt 0:00:02]} d5 {[%emt 0:01:06]} 2. c4 {[%emt 0:00:06]} dxc4 {[%emt 0:01:05]} 3. Nf3 {[%emt 0:00:06]} Nf6 {[%emt 0:00:05]} 4. e3 {[%emt 0:00:05]} e6 {[%emt 0:00:05]} 5. Bxc4 {[%emt 0:00:03]} a6 {[%emt 0:00:04]} 6. O-O {[%emt 0:00:05]} c5 {[%emt 0:00:03]} 7. Qe2 {[%emt 0:00:05]} b5 {[%emt 0:00:41]} 8. Bd3 {[%emt 0:00:07]} Nbd7 {[%emt 0:04:51]} 9. a4 {[%emt 0:08:42]} Bb7 {[%emt 0:01:16][%cal Bc8b7,Bb7g2,Bg2h3][%mdl 32]} 10. axb5 {[%emt 0:05:33]} axb5 {[%emt 0:00:18]} 11. Rxa8 {[%emt 0:00:04] White is slightly better.} Qxa8 {[%emt 0:00:05]} 12. Bxb5 {[%emt 0:05:51] And now Ne5 would win.} cxd4 {[%emt 0:00:34]} 13. Rd1 {[%emt 0:00:47] Strongly threatening Ne5.} Bc5 $2 {[%emt 0:18:11]} (13... Bxf3 $14 14. Qxf3 (14. gxf3 Qb7 $16) 14... Qxf3 15. gxf3 Bc5) 14. Ne5 $1 $18 {[%emt 0:14:08]} ({Don't do} 14. Nxd4 $6 Bxg2 15. Nc3 Bxd4 (15... O-O 16. Bxd7 Nxd7 17. e4 $14) 16. Rxd4 Bc6 $11) (14. exd4 Bxf3 15. gxf3 (15. Qxf3 Qxf3 16. gxf3 Bd6 $14) 15... Bd6) 14... Bxg2 {[%emt 0:09:20][%cal Oe8g8]} 15. f3 {[%emt 0:19:39]} Bh3 {[%emt 0:04:08]} 16. exd4 {[%emt 0:01:22]} Bb6 {[%emt 0:03:27][%cal Bc5b6,Bb6c7,Bc7d6][%mdl 32]} 17. Be3 {[%emt 0:15:07]} Qd8 {[%emt 0:40:08]} (17... Qb7 {was called for.}) 18. Bxd7+ {[%emt 0:13:54]} (18. Bg5 $142 {Nxd7 is the strong threat.} h6 19. Nxd7 hxg5 20. Nxf6+ (20. Nxb6+ Kf8 $18) 20... Kf8 21. Nd7+ Kg8 22. Nxb6 Qxb6 23. Nc3) 18... Nxd7 {[%emt 0:00:13]} 19. Qb5 {[%emt 0:00:03]} Bc7 {[%emt 0:01:16]} 20. Nc3 {[%emt 0:00:04]} Bf5 {[%emt 0:01:57]} 21. Ne4 {[%emt 0:01:01]} Bxe4 {[%emt 0:03:09]} 22. fxe4 {[%emt 0:00:06]} Bd6 {[%emt 0:05:59]} 23. Qc6 {[%emt 0:09:43]} Qc7 {[%emt 0:01:14]} 24. Qa8+ {[%emt 0:00:03]} Qb8 {[%emt 0:00:50]} 25. Qa4 {[%emt 0:00:03]} Qb7 {[%emt 0:01:38][%cal Of7f6] [#]} ({But not} 25... Bxe5 $6 26. dxe5 O-O 27. Qxd7 $16) 26. Bf4 {[%emt 0:00:14]} (26. Rd3 $1 $18 {[%cal Rd3b3] Black must now prevent Rb3.} Bxe5 27. dxe5) 26... O-O $2 {[%emt 0:01:14]} 27. Qxd7 {[%emt 0:00:21]} Qxe4 {[%emt 0:00:04]} 28. Qxd6 {[%emt 0:00:34]} Qxf4 {[%emt 0:00:04]} 29. Rf1 {[%emt 0:02:44]} Qe3+ {[%emt 0:00:18]} 30. Rf2 {[%emt 0:03:21]} Qc1+ {[%emt 0:00:21]} 31. Kg2 {[%emt 0:00:03][%cal Oe5f7] Hoping for Nxf7!} Qg5+ {[%emt 0:00:03] [#]} 32. Kf3 $1 {[%emt 0:00:16]} h5 {[%emt 0:02:01]} (32... Qf5+ $142 33. Ke3 Qg5+ 34. Ke2 Qh5+ 35. Kd2 Qg5+ 36. Kc2 Qe3) 33. Qc7 {[%emt 0:00:27]} f6 {[%emt 0:00:29][%cal Bf7f6,Bf6e5][%mdl 32]} 34. Nd3 {[%emt 0:00:29]} e5 {[%emt 0:00:24]} 35. Qc4+ {[%emt 0:00:25]} Kh8 {[%emt 0:00:04][%cal Oe5e4]} 36. dxe5 {[%emt 0:00:12] White is clearly winning.} fxe5+ {[%emt 0:00:14]} 37. Ke2 {[%emt 0:00:00]} Rd8 {[%emt 0:00:40]} 38. Qe4 {[%emt 0:00:11]} h4 {[%emt 0:00:51]} 39. Rf5 {[%emt 0:00:30]} Qh6 {[%emt 0:00:15]} 40. Qg4 {[%emt 0:00:33] Weighted Error Value: White=0.14 (very precise) /Black=0.36.  Loses game:     	---       	Black=1      Mistake:       	White=2     	Black=3      Inaccurate:     	---       	Black=2      OK:         	White=16    	Black=12     Best:        	White=6     	Black=2      Strong:       	White=2     	---} 1-0